[Event "ChessKid Cup Div-III 2023"]
[Site "Online"]
[Date "2023.05.22"]
[Round "51.2"]
[White "Gadimbayli, Abdulla"]
[Black "Navara, David"]
[Result "0-1"]
[ECO "C67"]
[WhiteElo "2500"]
[BlackElo "2678"]
[Annotator "TA"]
[PlyCount "76"]
[EventDate "2023.05.21"]
[EventType "k.o."]
[EventCountry "NET"]
[SourceTitle "playchess.com"]
[Source "ChessBase"]
[SourceQuality "1"]
[TimeControl "900+3"]

{[%evp 9,76,11,5,-6,10,-4,20,20,20,20,20,10,14,14,20,0,0,0,0,0,0,-8,0,0,0,-12,-8,0,0,-42,-52,-67,-82,-79,-56,-42,-56,-58,-33,-98,-85,-90,-91,-113,-114,-119,-114,-102,-112,-133,-129,-143,-143,-142,-139,-136,-134,-143,-143,-135,-134,-136,-135,-129,-133,-29987,-29988,-29998,-29999]} 1. e4 {[%emt 0:00:03]} e5 {[%emt 0:00:04]} 2. Nf3 {[%emt 0:00:01]} Nc6 {[%emt 0:00:00]} 3. Bb5 {[%emt 0:00:26]} Nf6 {[%emt 0:00:02]} 4. O-O {[%emt 0:00:05]} Nxe4 {[%emt 0:00:01]} 5. Re1 {[%emt 0:00:01]} Nd6 {[%emt 0:00:01]} 6. Bf1 {[%emt 0:00:00][%cal Ob1c3] C67: Ruy Lopez: Berlin Defence: 4 0-0 Nxe4.} Be7 {[%emt 0:00:19] Strongly threatening ...e4.} 7. Nc3 {[%emt 0:00:03] Nowadays more popular than 7.Nxe5.} e4 {[%emt 0:00:23][%mdl 64] Deflection} 8. Nxe4 {[%emt 0:00:02] The position is equal.} Nxe4 {[%emt 0:00:00]} 9. Rxe4 {[%emt 0:00:02]} d5 {[%emt 0:00:00]} 10. Re1 {[%emt 0:00:00]} Bg4 {[%emt 0:00:22]} 11. h3 {[%emt 0:00:08]} Bh5 {[%emt 0:00:01] [#]} 12. d4 $146 {[%emt 0:00:19]} ({Predecessor:} 12. c3 O-O 13. d4 Bd6 14. g4 Bg6 15. Ne5 Nxe5 16. dxe5 Bc5 17. Be3 Bxe3 18. Rxe3 {½-½ Mamedov,R (2656)-Ganguly,S (2616) FRA-chT Top 16 GpA 2022 (7.2)}) 12... Bxf3 {[%emt 0:00:22]} 13. Qxf3 {[%emt 0:00:03]} Nxd4 {[%emt 0:00:00]} 14. Qg4 {[%emt 0:01:06]} Ne6 {[%emt 0:00:01][%cal Bd4e6,Be6c5,Bc5a4,Ba4b2,Bb2d1][%mdl 32]} 15. Bd3 {[%emt 0:00:23]} O-O {[%emt 0:00:36]} 16. Bf5 {[%emt 0:00:15]} Nc5 {[%emt 0:02:17]} 17. Bh6 {[%emt 0:01:59][%csl Gh6][%cal Rg4g7]} Bf6 {[%emt 0:00:01]} 18. Rad1 {[%emt 0:00:00]} c6 {[%emt 0:00:56]} 19. Be3 {[%emt 0:00:22] This pair of bishops is nice.} b6 {[%emt 0:01:43]} 20. b4 {[%emt 0:03:40]} Na4 {[%emt 0:00:02]} 21. Bd7 {[%emt 0:03:03]} Nb2 {[%emt 0:00:38] aiming for ...h5.} (21... Qc7 $5 {[%cal Rh7h5]} 22. b5 (22. Bf4 Qb7 $17) 22... cxb5 23. Rxd5 Rad8 $17) 22. Bxc6 {[%emt 0:01:23]} Nxd1 {[%emt 0:00:02]} 23. Rxd1 {[%emt 0:00:04]} Rc8 {[%emt 0:00:02]} 24. Bxd5 {[%emt 0:01:09]} (24. Rxd5 $15 Qc7 25. b5) 24... Qe7 $17 {[%emt 0:00:01]} 25. Bb3 {[%emt 0:00:10]} Rfd8 $36 {[%emt 0:00:53][%mdl 2048] Against Rd7. Black is in control.} 26. Re1 {[%emt 0:00:02][%cal Bd1e1,Be1e5,Be5f5,Bf5f6,Bf6c6][%mdl 32]} Bc3 {[%emt 0:01:15]} 27. Bd2 {[%emt 0:00:15][%mdl 64] Discovered Attack} Qf8 {[%emt 0:00:03]} 28. Bxc3 {[%emt 0:00:11]} Rxc3 {[%emt 0:00:00]} 29. Re5 {[%emt 0:00:01]} Rc7 {[%emt 0:01:58]} 30. Qf4 {[%emt 0:00:03]} Re7 {[%emt 0:00:14]} 31. Rf5 {[%emt 0:00:22]} g6 {[%emt 0:00:21]} 32. Rf6 {[%emt 0:00:03]} Qe8 {[%emt 0:00:50]} 33. Kh2 {[%emt 0:00:12]} Qd7 {[%emt 0:00:12]} 34. g3 {[%emt 0:00:05]} Qb7 {[%emt 0:00:27]} 35. b5 {[%emt 0:00:26]} Rd1 {[%emt 0:00:08][%csl Gd1][%cal Rb7h1]} 36. Rc6 {[%emt 0:00:01] [#]} Qd7 $1 {[%emt 0:00:31][%cal Od1h1] ( -> ...Rh1+!). Really sharp!} 37. c3 $2 {[%emt 0:00:07][%mdl 8192] [#]} (37. Kg2 $17) 37... Rh1+ $3 {[%emt 0:00:08][%mdl 576] Skewer, Decoy, Back Rank} 38. Kxh1 {[%emt 0:00:03]} (38. Kg2 Qxh3+) 38... Qxh3+ {[%emt 0:00:00] A superb game by Navara.   Weighted Error Value: White=0.27 (precise) /Black=0.02 (flawless)} 0-1

[Event "ChessKid Cup Div-III 2023"]
[Site "Online"]
[Date "2023.05.23"]
[Round "52.1"]
[White "Yu, Yangyi"]
[Black "Bachmann, Axel"]
[Result "1-0"]
[ECO "C54"]
[WhiteElo "2729"]
[BlackElo "2604"]
[Annotator "TA"]
[PlyCount "59"]
[EventDate "2023.05.21"]
[EventType "k.o."]
[EventCountry "NET"]
[SourceTitle "playchess.com"]
[Source "ChessBase"]
[SourceQuality "1"]
[TimeControl "900+3"]

{[%evp 13,59,10,10,6,18,8,36,0,29,41,34,31,37,31,27,37,33,0,0,0,0,0,3,0,27,7,11,10,41,13,50,30,30,42,187,189,384,392,352,312,314,256,273,271,415,388,371,370]} 1. e4 {[%emt 0:00:06]} e5 {[%emt 0:00:12]} 2. Nf3 {[%emt 0:00:02]} Nc6 {[%emt 0:00:01]} 3. Bc4 {[%emt 0:00:02]} Bc5 {[%emt 0:00:03]} 4. d3 {[%emt 0:00:02]} Nf6 {[%emt 0:00:08]} 5. Bg5 {[%emt 0:00:01]} h6 {[%emt 0:00:33]} 6. Bh4 {[%emt 0:00:01]} d6 {[%emt 0:00:03]} 7. c3 {[%emt 0:00:05] is now debated instead of 7.h3.} a6 {[%emt 0:00:22]} 8. a4 {[%emt 0:00:02] C54: Giuoco Piano: 4 c3 Nf6, main lines with 5 d4 and 5 d3.} Ba7 {[%emt 0:00:03]} 9. Nbd2 {[%emt 0:00:01]} Qe7 {[%emt 0:00:49]} (9... g5 $5 {[%cal Rg5h4]} 10. Bg3 Be6 $11) 10. b4 {[%emt 0:00:07][%cal Bb2b4,Bb4b5][%mdl 32] White is slightly better.} Be6 {[%emt 0:02:01]} 11. O-O {[%emt 0:00:05]} Bxc4 {[%emt 0:01:35]} 12. Nxc4 {[%emt 0:00:02]} Qe6 {[%emt 0:00:02] [#]} 13. b5 $146 {[%emt 0:00:22]} ({Predecessor:} 13. Bxf6 Qxf6 14. b5 Nd8 15. Rb1 Rc8 16. d4 exd4 17. cxd4 O-O 18. Re1 Re8 19. Qd2 axb5 20. Rxb5 {1-0 Sethuraman,S (2619)-Ravi,T (2236) IND-ch 58th Kanpur 2022 (7)}) 13... Ne7 {[%emt 0:00:08]} 14. Bxf6 {[%emt 0:00:08]} Qxf6 {[%emt 0:00:08]} 15. d4 {[%emt 0:00:07]} exd4 {[%emt 0:00:12]} 16. cxd4 {[%emt 0:00:01][%cal Ob5b6]} O-O {[%emt 0:00:06]} 17. bxa6 {[%emt 0:00:19]} bxa6 {[%emt 0:00:03]} 18. Ne3 {[%emt 0:00:10]} Qe6 {[%emt 0:02:54]} 19. Qc2 {[%emt 0:00:47]} c6 {[%emt 0:00:41]} 20. Rfe1 {[%emt 0:01:19][%cal Bf1e1,Be1b1,Bb1b7][%mdl 32]} Rfe8 {[%emt 0:00:27]} 21. Rab1 {[%emt 0:00:12]} Rab8 {[%emt 0:00:05]} 22. Qd3 {[%emt 0:00:07]} Rxb1 {[%emt 0:00:25]} 23. Rxb1 {[%emt 0:00:28]} Ng6 {[%emt 0:00:35] Black cannot hold the game after this.} ({Black should play} 23... Qc8 $14) 24. Rb7 $18 {[%emt 0:00:22]} ({But not} 24. Qxa6 $6 Qxe4 25. Re1 Bxd4 $16) 24... Bb8 {[%emt 0:00:22] [#]} (24... Ra8 {was necessary.} 25. h4 (25. Qxa6 Qc8 $15) 25... a5) 25. Qxa6 {[%emt 0:00:17]} d5 {[%emt 0:00:26]} 26. exd5 {[%emt 0:00:19]} cxd5 {[%emt 0:00:00]} 27. Qxe6 {[%emt 0:00:01]} fxe6 {[%emt 0:00:01]} 28. a5 {[%emt 0:00:01][%cal Ba4a5,Ba5a6][%mdl 32] Black must now prevent a6.} Bd6 {[%emt 0:00:26]} (28... Ne7 {was called for.} 29. a6 Nc6) 29. a6 {[%emt 0:00:31]} Ra8 {[%emt 0:00:03]} 30. Rb6 {[%emt 0:00:03] Weighted Error Value: White=0.14 (very precise) /Black=0.35} 1-0

[Event "ChessKid Cup Div-III 2023"]
[Site "Online"]
[Date "2023.05.23"]
[Round "52.1"]
[White "Keymer, Vincent"]
[Black "Bluebaum, Matthias"]
[Result "1-0"]
[ECO "A20"]
[WhiteElo "2700"]
[BlackElo "2669"]
[Annotator "TA"]
[PlyCount "85"]
[EventDate "2023.05.21"]
[EventType "k.o."]
[EventCountry "NET"]
[SourceTitle "playchess.com"]
[Source "ChessBase"]
[SourceQuality "1"]
[TimeControl "900+3"]

{[%evp 13,85,12,19,0,0,2,18,0,0,0,0,0,0,0,0,0,15,13,16,23,31,34,41,35,39,46,37,41,39,46,87,88,106,104,97,100,199,201,214,146,230,143,140,137,147,143,121,63,82,70,179,187,354,200,366,331,369,349,433,433,561,557,816,810,775,755,1035,971,1118,991,29985,29985,29985,29976]} 1. c4 {[%emt 0:00:04]} e5 {[%emt 0:00:05]} 2. g3 {[%emt 0:00:01]} Nf6 {[%emt 0:00:04]} 3. Bg2 {[%emt 0:00:04]} c6 {[%emt 0:00:01]} 4. d4 {[%emt 0:00:15]} Bb4+ {[%emt 0:00:02]} 5. Bd2 {[%emt 0:00:09]} Bxd2+ {[%emt 0:00:01]} 6. Qxd2 {[%emt 0:00:01]} d6 {[%emt 0:00:01]} 7. Nc3 {[%emt 0:00:22]} O-O {[%emt 0:00:12]} 8. Rd1 {[%emt 0:00:07] [#] dxe5 is the strong threat. 8.b3 is the recent fashion. A20: English Opening: 1...e5.} Qe7 {[%emt 0:00:07]} 9. b3 $5 {[%emt 0:00:05][%mdl 4] A promising side line.} h6 {[%emt 0:00:23]} 10. dxe5 {[%emt 0:01:28] The position is equal.} (10. d5 $5 {[%cal Rd5c6]}) 10... dxe5 {[%emt 0:00:02]} 11. Qd6 {[%emt 0:00:06]} Qxd6 {[%emt 0:00:46]} 12. Rxd6 {[%emt 0:00:00]} Re8 {[%emt 0:01:55]} 13. Nf3 {[%emt 0:01:12]} Bf5 {[%emt 0:00:12]} 14. O-O {[%emt 0:00:59]} Na6 {[%emt 0:00:02]} 15. Rfd1 {[%emt 0:00:27]} Nc5 {[%emt 0:00:58]} 16. Nh4 {[%emt 0:00:51] [#]} Bh7 $146 {[%emt 0:00:18]} ({Predecessor:} 16... Bc2 17. Rc1 Bh7 18. b4 Ne6 19. Rcd1 Rad8 20. Rxd8 Rxd8 21. Rxd8+ Nxd8 22. Nf3 Nd7 {1-0 Van Leent,D (2309)-Ouwendijk,V (2107) Hoogeveen Essent op 2005 (5)}) 17. b4 {[%emt 0:00:18]} Nce4 {[%emt 0:00:03]} 18. Nxe4 {[%emt 0:00:08]} Nxe4 {[%emt 0:00:00]} 19. Bxe4 {[%emt 0:00:26]} Bxe4 {[%emt 0:00:00]} 20. f3 {[%emt 0:00:00]} Bh7 {[%emt 0:00:20]} 21. Rd7 {[%emt 0:01:52]} g5 {[%emt 0:00:29]} 22. Ng2 {[%emt 0:00:03] White is more active.} a5 {[%emt 0:00:01]} 23. b5 {[%emt 0:00:26]} (23. Rxb7 $6 axb4 24. Rxb4 Rxa2 $11) 23... cxb5 {[%emt 0:01:02]} 24. cxb5 {[%emt 0:00:02][%cal Og2e3]} Rac8 {[%emt 0:02:26]} (24... e4 $16 {was called for.}) 25. Ne3 $18 {[%emt 0:00:37]} (25. Rxb7 $6 Rc2 $16) 25... Rb8 {[%emt 0:02:40]} 26. R1d6 {[%emt 0:00:40][%cal Od6b6]} Kg7 {[%emt 0:00:56]} (26... Bb1 $16) 27. Rb6 {[%emt 0:00:49]} Red8 {[%emt 0:00:43]} 28. Rxd8 {[%emt 0:01:22]} (28. Rdxb7 Rxb7 29. Rxb7 Rd2 $16) 28... Rxd8 $16 {[%emt 0:00:00][%mdl 4096] Endgame [#] KRB-KRN} 29. Nc4 $1 {[%emt 0:00:01] Wards off Rd2} (29. Rxb7 $6 Rd2 $16) 29... e4 {[%emt 0:00:50]} 30. Rxb7 {[%emt 0:00:03]} (30. Nxa5 $6 e3 31. Nxb7 (31. Rxb7 Rd1+ 32. Kg2 Re1 $15) 31... Rd1+ 32. Kg2 Rd2 $11) (30. fxe4 $16 {And now Nd6 would win.} Bxe4 31. Kf2 (31. Nxa5 Ra8 $14) (31. Nd6 Bd5 $16)) 30... exf3 $14 {[%emt 0:00:01]} 31. exf3 {[%emt 0:00:01][%cal Ob5b6]} Rd1+ {[%emt 0:00:01]} (31... Bd3 $14 32. Ne5 (32. Nxa5 Re8 $11) 32... Rd5 33. Nxf7 (33. Rxf7+ Kg8 $16) 33... Rxb5 34. Nd6+ {[%mdl 64] Discovered Attack} Rxb7 35. Nxb7 a4) 32. Kf2 $18 {[%emt 0:00:26][%cal Ob5b6] aiming for b6!} Ra1 $2 {[%emt 0:00:15]} (32... Bb1 {was necessary.} 33. a3 (33. Nxa5 Bxa2 34. Ke3 Rb1 $16) 33... a4) 33. a3 {[%emt 0:00:21]} (33. Nxa5 $2 Rxa2+ 34. Ke3 Rxa5 $19) (33. b6 $142 Rb1 34. Ra7) 33... Bd3 $2 {[%emt 0:00:40]} (33... Bf5 34. Ke3 (34. Nxa5 Ra2+ 35. Ke1 Rxa3 $16) 34... Be6) 34. Ne5 {[%emt 0:00:18]} (34. Nxa5 Ra2+ 35. Ke3 Rxa3 $16) 34... Bg6 {[%emt 0:00:10]} 35. Ra7 {[%emt 0:01:13] Hoping for b6.} Ra2+ {[%emt 0:00:06]} 36. Ke3 {[%emt 0:00:01] Strongly threatening b6.} Rxa3+ {[%emt 0:00:01]} 37. Kd4 {[%emt 0:00:00]} a4 {[%emt 0:00:24]} 38. b6 {[%emt 0:00:24][%cal Bb5b6,Bb6b7][%mdl 32]} Rb3 {[%emt 0:00:01]} 39. b7 {[%emt 0:00:18]} ({Stronger than} 39. Rxa4 Rxb6 40. h4 gxh4 41. gxh4 Rb1 $11) 39... g4 {[%emt 0:00:35]} 40. fxg4 {[%emt 0:00:21]} ({And not} 40. Rxa4 gxf3 41. Nxf3 (41. Nxg6 fxg6 42. Ra7 Kf6 $11) 41... Rxb7 $11) 40... a3 {[%emt 0:00:03]} 41. Nc6 {[%emt 0:00:07]} Rd3+ {[%emt 0:00:06]} 42. Kc4 {[%emt 0:00:04]} Rd6 {[%emt 0:00:02]} 43. Kc5 {[%emt 0:00:04] Weighted Error Value: White=0.15 (very precise) /Black=0.58} 1-0

[Event "ChessKid Cup Div-III 2023"]
[Site "Online"]
[Date "2023.05.23"]
[Round "52.1"]
[White "Kamsky, Gata"]
[Black "Terry, Renato"]
[Result "1/2-1/2"]
[ECO "C18"]
[WhiteElo "2665"]
[BlackElo "2520"]
[Annotator "TA"]
[PlyCount "202"]
[EventDate "2023.05.21"]
[EventType "k.o."]
[EventCountry "NET"]
[SourceTitle "playchess.com"]
[Source "ChessBase"]
[SourceQuality "1"]
[TimeControl "900+3"]

{[%evp 39,202,31,20,17,26,12,26,12,26,12,16,4,4,4,14,4,4,4,18,0,4,4,4,0,4,4,13,4,16,4,4,4,14,0,14,12,19,13,58,58,58,58,58,51,52,45,49,45,61,61,50,47,63,63,63,63,63,61,63,0,63,54,63,54,63,63,61,54,54,54,54,54,54,54,54,54,54,54,64,54,54,0,0,0,0,0,0,0,0,0,0,0,0,0,13,8,12,8,31,31,51,30,40,0,3,0,0,0,141,11,13,11,382,345,367,367,360,322,378,253,249,247,3015,1849,29944,10505,2717,8,8,8,29958,29948,29974,29972,29974,29971,29971,29972,29970,8,8,0,0,0,0,0,0,0,0,0,0,0,0,0,0,0,0,0,0,0,0,0,0,0,0]} 1. e4 {[%emt 0:00:12]} e6 {[%emt 0:00:09]} 2. d4 {[%emt 0:00:10]} d5 {[%emt 0:00:01]} 3. Nc3 {[%emt 0:00:01]} Bb4 {[%emt 0:00:08]} 4. e5 {[%emt 0:00:03]} c5 {[%emt 0:00:02]} 5. a3 {[%emt 0:00:01]} Bxc3+ {[%emt 0:00:02]} 6. bxc3 {[%emt 0:00:01]} Qa5 {[%emt 0:00:00]} 7. Bd2 {[%emt 0:00:07]} Qa4 {[%emt 0:00:03]} 8. Qb1 {[%emt 0:00:04]} c4 {[%emt 0:00:03]} 9. Ne2 {[%emt 0:00:02]} Nc6 {[%emt 0:00:22]} 10. Nf4 {[%emt 0:00:01]} g6 {[%emt 0:00:04]} 11. Be2 {[%emt 0:00:28]} Nge7 {[%emt 0:00:10]} 12. O-O {[%emt 0:00:06]} Bd7 {[%emt 0:00:12]} 13. Qc1 {[%emt 0:00:50]} h6 {[%emt 0:01:30]} 14. Nh3 {[%emt 0:00:42]} Ng8 {[%emt 0:00:07]} 15. Re1 {[%emt 0:00:18]} O-O-O {[%emt 0:00:02]} 16. Bd1 {[%emt 0:00:23]} Rf8 {[%emt 0:00:35]} 17. Rb1 {[%emt 0:00:32]} Kb8 {[%emt 0:01:02]} 18. Nf4 {[%emt 0:00:53]} Ka8 {[%emt 0:00:12]} 19. Bf3 {[%emt 0:00:06]} Nge7 {[%emt 0:00:55]} 20. Bg4 {[%emt 0:00:07]} Rh7 {[%emt 0:00:29]} 21. Re3 {[%emt 0:00:18]} Rfh8 {[%emt 0:00:14]} 22. Qb2 {[%emt 0:00:30]} b6 {[%emt 0:01:25]} 23. Rg3 {[%emt 0:00:03]} Bc8 {[%emt 0:00:37]} 24. Re1 {[%emt 0:00:07]} Bd7 {[%emt 0:00:15]} 25. Qc1 {[%emt 0:00:21]} Bc8 {[%emt 0:00:04]} 26. Ne2 {[%emt 0:00:51]} Bd7 {[%emt 0:01:00]} 27. Rh3 {[%emt 0:00:04]} Ng8 {[%emt 0:00:01]} 28. Rf3 {[%emt 0:00:26]} Nge7 {[%emt 0:00:23]} 29. Rh3 {[%emt 0:00:48]} Ng8 {[%emt 0:00:02]} 30. Nf4 {[%emt 0:00:04]} Nge7 {[%emt 0:00:49]} 31. Rg3 {[%emt 0:01:47]} Bc8 {[%emt 0:00:47]} 32. h4 {[%emt 0:00:06]} Bd7 {[%emt 0:00:54]} 33. Rf1 {[%emt 0:01:18]} Bc8 {[%emt 0:00:40]} 34. Bh3 {[%emt 0:00:23]} Nd8 {[%emt 0:01:15]} 35. Re1 {[%emt 0:00:24]} Ndc6 {[%emt 0:00:02]} 36. Bg4 {[%emt 0:00:31]} Bd7 {[%emt 0:00:04]} 37. Rh3 {[%emt 0:00:03]} Nd8 {[%emt 0:00:16]} 38. Ne2 {[%emt 0:00:09]} h5 {[%emt 0:00:57]} 39. Bf3 {[%emt 0:00:04]} Nf5 {[%emt 0:00:00]} 40. Bg5 {[%emt 0:00:07]} Nc6 {[%emt 0:00:15]} 41. Nf4 {[%emt 0:00:04]} Qa5 {[%emt 0:00:12]} 42. Be2 {[%emt 0:00:06]} Re8 {[%emt 0:00:16]} 43. Bf6 {[%emt 0:00:02]} Nce7 {[%emt 0:00:03]} 44. Rd1 {[%emt 0:00:21]} Ng8 {[%emt 0:00:01]} 45. Bg5 {[%emt 0:00:01]} Ngh6 {[%emt 0:00:04]} 46. Qb2 {[%emt 0:00:06]} Ba4 {[%emt 0:00:11]} 47. Rb1 {[%emt 0:00:05]} Rc8 {[%emt 0:00:10]} 48. Rf3 {[%emt 0:00:28]} Ng4 {[%emt 0:00:08]} 49. Rh3 {[%emt 0:00:07]} (49. Ra1 $14) 49... Rf8 {[%emt 0:00:03]} ({Black should try} 49... Ngh6 $1 $11) 50. Rc1 {[%emt 0:00:09]} Ngh6 {[%emt 0:00:04]} 51. Bf3 {[%emt 0:00:38]} Rc8 {[%emt 0:00:02]} 52. Rh1 {[%emt 0:00:07]} Kb8 {[%emt 0:00:03]} 53. g3 {[%emt 0:00:02]} (53. Rb1 {looks sharper.} Ng4 54. g3 Rhh8 55. Ra1) 53... Qb5 {[%emt 0:00:09]} 54. Qxb5 {[%emt 0:00:04]} Bxb5 {[%emt 0:00:00]} 55. Kg2 {[%emt 0:00:03]} Ba4 {[%emt 0:00:01]} 56. Nh3 {[%emt 0:00:03]} Ng8 {[%emt 0:00:05]} 57. Be2 {[%emt 0:00:06]} Kc7 {[%emt 0:00:04]} 58. f3 {[%emt 0:00:06]} Kd7 {[%emt 0:00:00]} 59. Kf2 {[%emt 0:00:01]} Rf8 {[%emt 0:00:04]} 60. g4 {[%emt 0:00:04]} (60. Nf4 $14) 60... Nfe7 $1 $11 {[%emt 0:00:04]} ({Don't play} 60... hxg4 61. fxg4 Ng7 62. Nf4 $16) 61. Kg3 {[%emt 0:00:06]} f6 $1 {[%emt 0:00:03]} 62. exf6 {[%emt 0:00:35]} Nxf6 {[%emt 0:00:01]} 63. Bxf6 {[%emt 0:00:03]} Rxf6 {[%emt 0:00:01]} 64. Ng5 {[%emt 0:00:00]} Rh8 {[%emt 0:00:04]} 65. Rhe1 {[%emt 0:00:02]} Nc6 {[%emt 0:00:11]} 66. Bf1 {[%emt 0:00:02]} Re8 {[%emt 0:00:04]} 67. Bh3 {[%emt 0:00:02]} Kd6 {[%emt 0:00:01]} 68. Re2 {[%emt 0:00:02]} e5 {[%emt 0:00:04]} 69. Rce1 {[%emt 0:00:04]} Re7 {[%emt 0:00:01]} 70. dxe5+ {[%emt 0:00:08]} Rxe5 {[%emt 0:00:00]} 71. Rxe5 {[%emt 0:00:03]} Nxe5 {[%emt 0:00:00]} 72. gxh5 {[%emt 0:00:01]} gxh5 {[%emt 0:00:02]} 73. f4 {[%emt 0:00:02]} Ng6 {[%emt 0:00:05]} (73... Nf7 $11) 74. f5 {[%emt 0:00:04]} (74. Nh7 $16 Rf7 75. Re6+ Kc5 76. Ng5) 74... Ne7 $11 {[%emt 0:00:06]} 75. Nh7 {[%emt 0:00:09]} Rf7 $2 {[%emt 0:00:01][%mdl 8192] [#]} (75... Nxf5+ $2 76. Kf4 Rg6 77. Bxf5 $18) (75... Rh6 $1 $11 76. f6 Rxh7 77. Re6+ {[%mdl 64] Deflection} (77. fxe7 Rxe7 78. Rxe7 Kxe7 $17) 77... Kc5 78. fxe7 (78. Rxe7 Rxe7 79. fxe7 Kd6 $11) 78... Rg7+ 79. Kf4 Be8) 76. Re6+ $1 $18 {[%emt 0:00:09]} Kc5 {[%emt 0:00:08] [#]} 77. Ng5 $1 {[%emt 0:00:02]} Nxf5+ {[%emt 0:00:05]} 78. Kf4 {[%emt 0:00:01]} Rf8 {[%emt 0:00:05]} (78... Nxh4+ $2 79. Nxf7 Bd7 80. Re3 $18) 79. Bxf5 {[%emt 0:00:03]} Bxc2 {[%emt 0:00:00]} 80. Re5 {[%emt 0:00:01]} Rxf5+ $2 {[%emt 0:00:01]} (80... Bxf5 81. Rxf5 Re8) 81. Rxf5 $18 {[%emt 0:00:02]} Bxf5 {[%emt 0:00:00]} 82. Kxf5 {[%emt 0:00:01]} Kb5 {[%emt 0:00:01]} 83. Ke5 $2 {[%emt 0:00:09]} ({White has to play} 83. Ne6 $18 {Nf4 is the strong threat.} Ka4 84. Nf4) 83... Ka4 $11 {[%emt 0:00:04]} 84. Kxd5 {[%emt 0:00:01]} Kb3 $2 {[%emt 0:00:00][%mdl 8192]} (84... Kxa3 $11 85. Kxc4 a5) 85. Ne4 {[%emt 0:00:04]} b5 {[%emt 0:00:01]} 86. Kc5 {[%emt 0:00:12]} a6 {[%emt 0:00:01]} 87. Kb6 {[%emt 0:00:13]} Kxa3 {[%emt 0:00:01]} 88. Kxa6 {[%emt 0:00:00]} b4 {[%emt 0:00:01]} 89. cxb4 $2 {[%emt 0:00:01]} (89. Kb5 {mates} bxc3 90. Nxc3 (90. Kxc4 $2 {loses.} c2 $19) 90... Kb3 91. Ne2 c3 92. Kc5 c2 93. Kd4 Kb4 94. Kd3) 89... Kxb4 $11 {[%emt 0:00:01]} 90. Kb6 {[%emt 0:00:01]} c3 {[%emt 0:00:01]} 91. Nxc3 {[%emt 0:00:01]} Kxc3 {[%emt 0:00:00]} 92. Kc5 {[%emt 0:00:04]} Kb3 {[%emt 0:00:03]} 93. Kd5 {[%emt 0:00:00]} Kb4 {[%emt 0:00:00]} 94. Ke5 {[%emt 0:00:01]} Kc5 {[%emt 0:00:01]} 95. Kf5 {[%emt 0:00:00]} Kd6 {[%emt 0:00:00]} 96. Kg5 {[%emt 0:00:01]} Ke7 {[%emt 0:00:01]} 97. Kxh5 {[%emt 0:00:00]} Kf7 {[%emt 0:00:01]} 98. Kg5 {[%emt 0:00:01]} Kg8 {[%emt 0:00:00]} 99. h5 {[%emt 0:00:01]} Kh8 {[%emt 0:00:01]} 100. h6 {[%emt 0:00:00]} Kg8 {[%emt 0:00:00]} 101. h7+ {[%emt 0:00:01]} Kxh7 {[%emt 0:00:00]} 1/2-1/2